fUST/lending_fUST_20250720
["ID","MTS","AMOUNT","RATE_DAILY","PERIOD"]
[373324115,1752946240481,-839.454303,0.00019064,2]
[373324116,1752946240491,-230.94145789,0.00019064,2]
[373324117,1752946240505,-160.0,0.00019064,2]
[373324118,1752946240515,-525.83049785,0.00019064,2]
[373324119,1752946240525,-214.52603969,0.00019064,2]
[373324120,1752946240535,-476.34170116,0.00019064,2]
[373324121,1752946240545,-160.0,0.00019064,2]
[373324123,1752946240555,-160.0,0.00019064,2]
[373324124,1752946240565,-160.0,0.00019065,2]
[373324125,1752946240576,-160.0,0.00019065,2]
[373324126,1752946240586,-160.0,0.00019065,2]
[373324127,1752946240597,-160.0,0.00019065,2]
[373324128,1752946240606,-460.0,0.0001909,2]
[373324130,1752946240616,-1037.32,0.0001909,2]
[373324131,1752946240626,-676.16,0.0001909,2]
[373324132,1752946240635,-460.0,0.0001909,2]
[373324133,1752946240647,-460.0,0.0001909,2]
[373324134,1752946240656,-460.0,0.0001909,2]
[373324135,1752946240667,-1103.69,0.0001909,2]
[373324136,1752946240678,-327.85,0.00019091,2]
[373324137,1752946240688,-510.99,0.00019091,2]
[373324138,1752946240698,-460.0,0.00019091,2]
[373324139,1752946240707,-460.0,0.00019091,2]
[373324140,1752946240716,-1007.93,0.00019091,2]
[373324141,1752946240726,-460.0,0.00019091,2]
[373324142,1752946240736,-319.66694749,0.00019091,2]
[373324143,1752946240745,-532.11,0.00019091,2]
[373324144,1752946240755,-460.0,0.00019091,2]
[373324145,1752946240765,-927.79,0.00019091,2]
[373324146,1752946240774,-460.0,0.00019092,2]
[373324147,1752946240785,-460.0,0.00019118,2]
[373324148,1752946240795,-460.0,0.00019118,2]
[373324149,1752946240804,-4916.66018502,0.00019141,2]
[373324150,1752946240814,-495.2433917,0.00019178,2]
[373324151,1752946240824,-666.0,0.00019178,2]
[373324152,1752946240834,-389.806916,0.00019178,2]
[373324153,1752946240844,-265.46431716,0.00019248,2]
[373324154,1752946240854,-160.0,0.00019307,2]
[373324155,1752946240863,-455.61,0.00019319,3]
[373324156,1752946240874,-303.74,0.00019319,3]
[373324157,1752946240884,-227.8,0.00019319,3]
[373324158,1752946240895,-797.32,0.00019319,3]
[373324159,1752946240904,-398.66,0.00019319,3]
[373324160,1752946240914,-281.3,0.00019319,3]
[373324161,1752946240924,-843.94,0.00019319,3]
[373324162,1752946240933,-500.0,0.00019328,2]
[373324163,1752946240943,-318.88036669,0.00019328,2]
[373324164,1752946240952,-636.66060445,0.00019328,2]
[373324165,1752946240962,-297.7733242,0.00019328,2]
[373324166,1752946240972,-500.0,0.00019328,2]
[373324167,1752946240982,-500.0,0.00019328,2]
[373324168,1752946240992,-153.61316494,0.00019328,2]
[373324169,1752946241002,-500.0,0.00019328,2]
[373324170,1752946241011,-500.0,0.00019328,2]
[373324171,1752946241022,-500.0,0.00019328,2]
[373324172,1752946241033,-500.0,0.00019328,2]
[373324173,1752946241043,-500.0,0.00019328,2]
[373324174,1752946241052,-500.0,0.00019328,2]
[373324175,1752946241063,-500.0,0.00019328,2]
[373324176,1752946241073,-500.0,0.00019328,2]
[373324177,1752946241082,-500.0,0.00019328,2]
[373324178,1752946241092,-500.0,0.00019328,2]
[373324179,1752946241101,-500.0,0.00019328,2]
[373324180,1752946241110,-500.0,0.00019328,2]
[373324181,1752946241120,-500.0,0.00019328,2]
[373324182,1752946241129,-500.0,0.00019328,2]
[373324183,1752946241139,-500.0,0.00019328,2]
[373324184,1752946241149,-500.0,0.00019328,2]
[373324185,1752946241159,-500.0,0.00019328,2]
[373324186,1752946241169,-500.0,0.00019328,2]
[373324187,1752946241179,-500.0,0.00019328,2]
[373324188,1752946241188,-500.0,0.00019328,2]
[373324189,1752946241198,-500.0,0.00019328,2]
[373324190,1752946241207,-500.0,0.00019328,2]
[373324191,1752946241217,-500.0,0.00019328,2]
[373324192,1752946241227,-500.0,0.00019328,2]
[373324193,1752946241236,-500.0,0.00019328,2]
[373324194,1752946241246,-500.0,0.00019328,2]
[373324195,1752946241255,-500.0,0.00019328,2]
[373324196,1752946241265,-500.0,0.00019328,2]
[373324197,1752946241275,-500.0,0.00019328,2]
[373324198,1752946241285,-500.0,0.00019328,2]
[373324199,1752946241295,-500.0,0.00019328,2]
[373324200,1752946241304,-500.0,0.00019328,2]
[373324201,1752946241315,-500.0,0.00019328,2]
[373324202,1752946241326,-500.0,0.00019328,2]
[373324203,1752946241335,-500.0,0.00019328,2]
[373324204,1752946241345,-500.0,0.00019328,2]
[373324205,1752946241356,-500.0,0.00019328,2]
[373324206,1752946241366,-500.0,0.00019328,2]
[373324207,1752946241376,-500.0,0.00019328,2]
[373324208,1752946241386,-500.0,0.00019328,2]
[373324209,1752946241397,-500.0,0.00019328,2]
[373324210,1752946241407,-500.0,0.00019328,2]
[373324211,1752946241416,-500.0,0.00019328,2]
[373324212,1752946241427,-500.0,0.00019328,2]
[373324213,1752946241437,-567.06088141,0.00019328,2]
[373324214,1752946241447,-500.0,0.00019328,2]
[373324215,1752946241457,-500.0,0.00019328,2]
[373324216,1752946241467,-500.0,0.00019328,2]
[373324217,1752946241477,-500.0,0.00019328,2]
[373324218,1752946241487,-500.0,0.00019328,2]
[373324219,1752946241501,-500.0,0.00019328,2]
[373324220,1752946241511,-86629.29424444,0.00019329,2]
[373324221,1752946241520,-164.637038,0.00019348,2]
[373324222,1752946241530,-460.0,0.00019364,2]
[373324223,1752946241540,-1037.32,0.00019364,2]
[373324224,1752946241552,-676.16,0.00019364,2]
[373324225,1752946241561,-460.0,0.00019364,2]
[373324226,1752946241571,-460.0,0.00019364,2]
[373324227,1752946241581,-460.0,0.00019364,2]
[373324228,1752946241591,-1103.69,0.00019364,2]
[373324229,1752946241601,-460.0,0.00019365,2]
[373324230,1752946241610,-460.0,0.00019365,2]
[373324231,1752946241620,-1007.93,0.00019365,2]
[373324232,1752946241629,-460.0,0.00019365,2]
[373324233,1752946241639,-532.11,0.00019365,2]
[373324234,1752946241649,-460.0,0.00019365,2]
[373324235,1752946241659,-927.79,0.00019365,2]
[373324236,1752946241668,-460.0,0.00019366,2]
[373324237,1752946241678,-151.87,0.00019373,3]
[373324238,1752946241688,-4916.66018502,0.00019383,2]
[373324239,1752946241698,-460.0,0.00019392,2]
[373324240,1752946241707,-460.0,0.00019392,2]
[373324241,1752946241717,-700.0,0.0001942,2]
[373324242,1752946241727,-3249.21134827,0.00019488,2]
[373324243,1752946241736,-124332.83828679,0.0001949,2]
[373324244,1752946241746,-9414.37512464,0.00019524,2]
[373324245,1752946241755,-4916.66018502,0.00019624,2]
[373324246,1752946241765,-460.0,0.00019638,2]
[373324247,1752946241774,-1037.32,0.00019638,2]
[373324248,1752946241784,-676.16,0.00019638,2]
[373324249,1752946241793,-365.88648344,0.00019638,2]
[373324250,1752946241803,-460.0,0.00019638,2]
[373324251,1752946241813,-1103.69,0.00019638,2]
[373324252,1752946241823,-460.0,0.00019639,2]
[373324253,1752946241833,-1007.93,0.00019639,2]
[373324254,1752946241993,-460.0,0.00019639,2]
[373324255,1752946242003,-532.11,0.00019639,2]
[373324256,1752946242013,-460.0,0.00019639,2]
[373324257,1752946242024,-927.79,0.00019639,2]
[373324258,1752946242033,-234.61,0.0001964,2]
[373324259,1752946242043,-460.0,0.00019666,2]
[373324260,1752946242053,-460.0,0.00019666,2]
[373324261,1752946242063,-424.90961907,0.00019793,2]
[373324262,1752946242074,-260.0,0.00019855,2]
[373324263,1752946242084,-4916.66018502,0.00019866,2]
[373324264,1752946242093,-265.46431716,0.00019911,2]
[373324265,1752946242103,-460.0,0.00019912,2]
[373324266,1752946242112,-1037.32,0.00019912,2]
[373324267,1752946242121,-676.16,0.00019912,2]
[373324268,1752946242131,-460.0,0.00019912,2]
[373324269,1752946242141,-1103.69,0.00019912,2]
[373324270,1752946242151,-460.0,0.00019913,2]
[373324271,1752946242162,-1007.93,0.00019913,2]
[373324272,1752946242173,-460.0,0.00019913,2]
[373324273,1752946242184,-532.11,0.00019913,2]
[373324274,1752946242194,-460.0,0.00019913,2]
[373324275,1752946242204,-927.79,0.00019913,2]
[373324276,1752946242213,-460.0,0.0001994,2]
[373324277,1752946242223,-215.0738,0.00019944,2]
[373324278,1752946242232,-1240.61968907,0.0002,2]
[373324279,1752946242243,-2567.0,0.0002,2]
[373324280,1752946242253,-2567.0,0.0002,2]
[373324281,1752946242263,-2567.0,0.0002,2]
[373324282,1752946242273,-2567.0,0.0002,2]
[373324283,1752946242283,-2567.0,0.0002,2]
[373324284,1752946242292,-2567.0,0.0002,2]
[373324285,1752946242302,-2567.0,0.0002,2]
[373324286,1752946242312,-2567.0,0.0002,2]
[373324287,1752946242322,-2567.0,0.0002,2]
[373324288,1752946242331,-2567.0,0.0002,2]
[373324289,1752946242340,-14300.23978458,0.0002,2]
[373324290,1752946242350,-11230.48444009,0.0002,2]
[373324291,1752946242359,-8182.36496867,0.0002,2]
[373324292,1752946242368,-3193.95892131,0.0002,2]
[373324293,1752946242378,-362.6568148,0.0002,2]
[373324294,1752946242387,-71504.53584913,0.0002,2]
[373324295,1752946242396,-5929.79780296,0.0002,2]
[373324296,1752946242406,-71682.65200165,0.0002,2]
[373324297,1752946242416,-571.55,0.00020026,2]
[373324298,1752946242425,-4916.66018502,0.00020107,2]
[373324299,1752946242434,-500.0,0.00020121,2]
[373324300,1752946242444,-151.0,0.00020121,2]
[373324301,1752946242454,-151.0,0.00020121,2]
[373324302,1752946242463,-198.0,0.00020121,2]
[373324303,1752946242472,-500.0,0.00020121,2]
[373324304,1752946242482,-219.34497079,0.00020121,2]
[373324305,1752946242492,-151.0,0.00020121,2]
[373324306,1752946242505,-151.0,0.00020121,2]
[373324307,1752946242514,-460.0,0.00020186,2]
[373324308,1752946242524,-1037.32,0.00020186,2]
[373324309,1752946242534,-676.16,0.00020186,2]
[373324310,1752946242544,-460.0,0.00020186,2]
[373324311,1752946242554,-1103.69,0.00020186,2]
[373324312,1752946242563,-460.0,0.00020187,2]
[373324313,1752946242576,-1007.93,0.00020187,2]
[373324314,1752946242586,-460.0,0.00020187,2]
[373324315,1752946242596,-532.11,0.00020187,2]
[373324316,1752946242605,-460.0,0.00020187,2]
[373324317,1752946242615,-927.79,0.00020187,2]
[373324318,1752946242625,-357.945444,0.00020187,2]
[373324319,1752946242634,-460.0,0.00020214,2]
[373324320,1752946242643,-387.83084799,0.00020328,2]
[373324321,1752946242653,-4916.66018502,0.00020348,3]
[373324322,1752946242663,-500.0,0.00020395,2]
[373324323,1752946242673,-500.0,0.00020395,2]
[373324324,1752946242683,-245.0,0.00020395,2]
[373324325,1752946242692,-360.0,0.00020403,2]
[373324326,1752946242701,-460.0,0.0002046,2]
[373324327,1752946242711,-1037.32,0.0002046,2]
[373324328,1752946242721,-676.16,0.0002046,2]
[373324329,1752946242731,-460.0,0.0002046,2]
[373324330,1752946242740,-1103.69,0.0002046,2]
[373324331,1752946242749,-460.0,0.00020461,2]
[373324332,1752946242760,-1007.93,0.00020461,2]
[373324333,1752946242771,-460.0,0.00020461,2]
[373324334,1752946242782,-532.11,0.00020461,2]
[373324335,1752946242791,-460.0,0.00020461,2]
[373324336,1752946242803,-927.79,0.00020461,2]
[373324337,1752946242812,-460.0,0.00020488,2]
[373324338,1752946242822,-9292.58942053,0.000205,2]
[373324339,1752946242831,-700.0,0.00020516,2]
[373324340,1752946242842,-500.0,0.00020547,2]
[373324341,1752946242853,-500.0,0.00020547,2]
[373324342,1752946242863,-500.0,0.00020547,2]
[373324343,1752946242873,-500.0,0.00020547,2]
[373324344,1752946242883,-500.0,0.00020547,2]
[373324345,1752946242893,-500.0,0.00020547,2]
[373324346,1752946242902,-500.0,0.00020547,2]
[373324347,1752946242912,-500.0,0.00020547,2]
[373324348,1752946242922,-500.0,0.00020547,2]
[373324349,1752946242931,-500.0,0.00020547,2]
[373324350,1752946242941,-500.0,0.00020547,2]
[373324351,1752946242951,-500.0,0.00020547,2]
[373324352,1752946242960,-265.46431716,0.00020574,2]
[373324353,1752946242970,-4916.66018502,0.0002059,3]
[373324354,1752946242979,-214.52603969,0.0002059,3]
[373324355,1752946242990,-160.0,0.0002066,3]
[373324356,1752946242999,-160.0,0.0002066,3]
[373324357,1752946243008,-12612.80205064,0.0002066,3]
[373324358,1752946243018,-476.34170116,0.0002066,3]
[373324359,1752946243027,-500.0,0.00020669,2]
[373324360,1752946243038,-500.0,0.00020669,2]
[373324361,1752946243047,-607.48,0.00020689,3]
[373324362,1752946243057,-1594.64,0.00020689,3]
[373324363,1752946243066,-797.32,0.00020689,3]
[373324364,1752946243075,-562.6,0.00020689,3]
[373324365,1752946243085,-460.0,0.00020734,2]
[373324366,1752946243094,-1037.32,0.00020734,2]
[373324367,1752946243104,-676.16,0.00020734,2]
[373324368,1752946243113,-460.0,0.00020734,2]
[373324369,1752946243123,-1103.69,0.00020734,2]
[373324370,1752946243133,-500.0,0.00020735,2]
[373324371,1752946243142,-460.0,0.00020735,2]
[373324372,1752946243152,-1007.93,0.00020735,2]
[373324373,1752946243162,-460.0,0.00020735,2]
[373324374,1752946243172,-532.11,0.00020735,2]
[373324375,1752946243182,-460.0,0.00020735,2]
[373324376,1752946243192,-927.79,0.00020735,2]
[373324377,1752946243202,-20904.05897788,0.00020739,2]
[373324379,1752946243212,-303.74,0.00020743,3]
[373324381,1752946243222,-1029.303,0.00020765,2]
[373324382,1752946243231,-164.637038,0.0002077,3]
[373324384,1752946243241,-587.0,0.00020792,2]
[373324386,1752946243250,-4916.66018502,0.00020831,4]
[373324388,1752946243260,-164.637038,0.00020844,2]
[373324389,1752946243270,-424.90961907,0.00020879,2]
[373324391,1752946243279,-224.2,0.0002094,2]
[373324393,1752946243289,-500.0,0.00020943,2]
[373324395,1752946243298,-500.0,0.00020943,2]
[373324397,1752946243308,-460.0,0.00020951,2]
[373324398,1752946243318,-1000.0,0.00020999,10]
[373324399,1752946243327,-1000.0,0.00020999,3]
[373324400,1752946243337,-3145.224935,0.00021,2]
[373324401,1752946243347,-1662.71,0.00021,2]
[373324402,1752946243358,-164.637038,0.00021,4]
[373324403,1752946243368,-55413.86746791,0.00021,4]
[373324404,1752946243468,-528.78757581,0.00021,4]
[373324405,1752946243481,-340.47030623,0.00021,4]
[373324406,1752946243493,-1526.68947299,0.00021,4]
[373324407,1752946243507,-460.0,0.00021,4]
[373324408,1752946243519,-3446.14876234,0.00021,4]
[373324409,1752946243600,-10085.662525,0.00021,4]
[373324410,1752946243612,-10829.7873,0.00021,4]
[373324411,1752946243795,-460.0,0.00017446,2]
[373324412,1752946243806,-460.0,0.00017447,2]
[373324413,1752946243815,-460.0,0.0001772,2]
[373324414,1752946243825,-476.26,0.00017721,2]
[373324415,1752946243835,-408.42,0.00017994,2]
[373324416,1752946243845,-2649.135909,0.00021,4]
[373324420,1752946246969,-461.97,0.00017446,2]
[373324421,1752946246979,-1898.1888978,0.0002099,10]
[373324422,1752946251819,500.0,0.00027,120]
[373324423,1752946275639,500.0,0.00027,120]
[373324428,1752947191284,340.048172,0.00013699,2]
[373324456,1752947431903,-300.0,0.00017445,2]
[373324457,1752947431914,-290.0,0.00017445,2]
[373324458,1752947431925,-217.0,0.00017445,2]
[373324459,1752947431939,-460.0,0.00017446,2]
[373324460,1752947431949,-460.0,0.00017446,2]
[373324461,1752947431959,-460.0,0.00017446,2]
[373324462,1752947431971,-460.0,0.00017446,2]
[373324463,1752947431980,-460.0,0.00017446,2]
[373324464,1752947431991,-460.0,0.00017446,2]
[373324465,1752947432001,-460.0,0.00017446,2]
[373324466,1752947432016,-460.0,0.00017446,2]
[373324467,1752947432029,-460.0,0.0001772,2]
[373324468,1752947432039,-122.2956053,0.0001772,2]
[373324469,1752947432103,-337.7043947,0.0001772,2]
[373324470,1752947432115,-707.31314587,0.00017776,2]
[373324506,1752947437819,-92.68685413,0.00017776,2]
[373324508,1752947437830,-460.0,0.0001799,2]
[373324510,1752947437839,-460.0,0.0001799,2]
[373324512,1752947437849,-460.0,0.0001799,2]
[373324514,1752947437862,-783.79,0.0001799,2]
[373324516,1752947437873,-460.0,0.0001799,2]
[373324519,1752947437883,-460.0,0.0001799,2]
[373324521,1752947437892,-460.0,0.0001799,2]
[373324523,1752947437902,-460.0,0.0001799,2]
[373324525,1752947437911,-460.0,0.0001799,2]
[373324527,1752947437921,-460.0,0.00017991,2]
[373324529,1752947437935,-460.0,0.00017991,2]
[373324531,1752947437945,-651.34,0.00017991,2]
[373324533,1752947437955,-460.0,0.00017991,2]
[373324536,1752947437964,-460.0,0.00017991,2]
[373324538,1752947437976,-460.0,0.00017991,2]
[373324540,1752947437985,-460.0,0.00017991,2]
[373324542,1752947437994,-460.0,0.00017991,2]
[373324544,1752947438005,-500.89911758,0.00017991,2]
[373324546,1752947438016,-1120.52,0.00017991,2]
[373324548,1752947438026,-460.0,0.00017991,2]
[373324550,1752947438036,-460.0,0.00017991,2]
[373324552,1752947438046,-460.0,0.00017991,2]
[373324554,1752947438062,-461.42,0.00017991,2]
[373324556,1752947438072,-460.0,0.00017992,2]
[373324558,1752947438081,-466.3493268,0.00017992,2]
[373324560,1752947438091,-460.0,0.00017992,2]
[373324562,1752947438101,-460.0,0.00017992,2]
[373324564,1752947438111,-462.30863829,0.00017992,2]
[373324566,1752947438120,-460.0,0.00017992,2]
[373324569,1752947438130,-460.0,0.00017992,2]
[373324571,1752947438139,-460.0,0.00017992,2]
[373324573,1752947438148,-292.71564757,0.00017992,2]
[373324575,1752947438158,-460.0,0.00017992,2]
[373324577,1752947438167,-460.0,0.00017992,2]
[373324579,1752947438177,-577.80975664,0.00017992,2]
[373324581,1752947438186,-460.0,0.00017992,2]
[373324583,1752947438196,-460.0,0.00017992,2]
[373324585,1752947438206,-460.0,0.00017992,2]
[373324587,1752947438216,-460.0,0.00017992,2]
[373324589,1752947438226,-500.0,0.00017992,2]
[373324591,1752947438236,-460.0,0.00017992,2]
[373324593,1752947438245,-500.0,0.00017992,2]
[373324595,1752947438255,-460.0,0.00017992,2]
[373324597,1752947438264,-323.33328266,0.00017992,2]
[373324599,1752947438274,-460.0,0.00017992,2]
[373324601,1752947438283,-460.0,0.00017992,2]
[373324603,1752947438292,-460.0,0.00017992,2]
[373324605,1752947438303,-460.0,0.00017992,2]
[373324607,1752947438313,-460.0,0.00017992,2]
[373324609,1752947438323,-500.0,0.00017992,2]
[373324611,1752947438333,-231.73,0.00017992,2]
[373324613,1752947438342,-460.0,0.00017992,2]
[373324615,1752947438352,-862.69,0.00017992,2]
[373324618,1752947438362,-460.0,0.00017992,2]
[373324620,1752947438373,-460.0,0.00017992,2]
[373324622,1752947438383,-460.0,0.00017992,2]
[373324624,1752947438392,-460.0,0.00017992,2]
[373324626,1752947438403,-279.08270891,0.00017992,2]
[373324628,1752947438412,-460.0,0.00017992,2]
[373324630,1752947438422,-535.96,0.00017992,2]
[373324632,1752947438431,-460.0,0.00017992,2]
[373324634,1752947438440,-460.0,0.00017992,2]
[373324636,1752947438450,-460.0,0.00017992,2]
[373324638,1752947438459,-460.0,0.00017992,2]
[373324640,1752947438471,-460.0,0.00017992,2]
[373324642,1752947438480,-460.0,0.00017992,2]
[373324644,1752947438490,-460.0,0.00017992,2]
[373324646,1752947438499,-460.0,0.00017992,2]
[373324648,1752947438509,-460.0,0.00017992,2]
[373324650,1752947438519,-1033.51,0.00017992,2]
[373324652,1752947438529,-462.18515848,0.00017993,2]
[373324654,1752947438539,-460.0,0.00017993,2]
[373324655,1752947438548,-460.0,0.00017993,2]
[373324656,1752947438556,-460.0,0.00017993,2]
[373324657,1752947438566,-460.0,0.00017993,2]
[373324658,1752947438575,-460.0,0.00017993,2]
[373324659,1752947438584,-460.0,0.00017993,2]
[373324660,1752947438593,-460.0,0.00017993,2]
[373324661,1752947438602,-656.09,0.00017993,2]
[373324662,1752947438611,-460.0,0.00017993,2]
[373324663,1752947438620,-460.0,0.00017993,2]
[373324664,1752947438629,-460.0,0.00017993,2]
[373324665,1752947438639,-460.0,0.00017994,2]
[373324666,1752947438648,-460.0,0.00017994,2]
[373324667,1752947438657,-460.0,0.00018264,2]
[373324668,1752947438666,-783.79,0.00018264,2]
[373324669,1752947438675,-460.0,0.00018264,2]
[373324670,1752947438685,-460.0,0.00018264,2]
[373324671,1752947438694,-651.34,0.00018265,2]
[373324672,1752947438704,-460.0,0.00018265,2]
[373324673,1752947438713,-460.0,0.00018265,2]
[373324674,1752947438723,-460.0,0.00018265,2]
[373324675,1752947438732,-460.0,0.00018265,2]
[373324676,1752947438741,-1120.52,0.00018265,2]
[373324677,1752947438750,-589.8,0.00018265,2]
[373324678,1752947438760,-460.0,0.00018266,2]
[373324679,1752947438769,-460.0,0.00018266,2]
[373324681,1752947438780,-862.69,0.00018266,2]
[373324682,1752947438790,-460.0,0.00018266,2]
[373324684,1752947438800,-460.0,0.00018266,2]
[373324686,1752947438810,-1033.51,0.00018266,2]
[373324688,1752947438819,-460.0,0.00018267,2]
[373324690,1752947438829,-460.0,0.00018267,2]
[373324692,1752947438839,-460.0,0.00018267,2]
[373324694,1752947438851,-460.0,0.00018267,2]
[373324696,1752947438861,-460.0,0.00018267,2]
[373324698,1752947438871,-656.09,0.00018267,2]
[373324700,1752947438882,-460.0,0.00018267,2]
[373324702,1752947438891,-460.0,0.00018268,2]
[373324705,1752947438901,-460.0,0.00018268,2]
[373324706,1752947438911,-500.0,0.00018441,2]
[373324708,1752947438920,-500.0,0.00018441,2]
[373324710,1752947438931,-205.42,0.00018441,2]
[373324712,1752947438942,-47701.22505755,0.00018442,2]
[373324725,1752947439054,-21232.97244324,0.00018442,2]
[373324727,1752947439065,-502.83724169,0.00018473,2]
[373324729,1752947439075,-500.0,0.00018473,2]
[373324731,1752947439084,-500.59312852,0.00018473,2]
[373324733,1752947439096,-515.48631446,0.00018473,2]
[373324735,1752947439106,-501.02957041,0.00018473,2]
[373324737,1752947439116,-500.0,0.00018473,2]
[373324739,1752947439126,-500.0,0.00018473,2]
[373324741,1752947439135,-460.0,0.00018538,2]
[373324743,1752947439145,-783.79,0.00018538,2]
[373324745,1752947439154,-460.0,0.00018538,2]
[373324747,1752947439164,-651.34,0.00018539,2]
[373324749,1752947439174,-460.0,0.00018539,2]
[373324751,1752947439184,-460.0,0.00018539,2]
[373324753,1752947439193,-1120.52,0.00018539,2]
[373324755,1752947439202,-460.0,0.0001854,2]
[373324757,1752947439212,-460.0,0.0001854,2]
[373324759,1752947439223,-862.69,0.0001854,2]
[373324761,1752947439232,-1033.51,0.0001854,2]
[373324763,1752947439241,-460.0,0.00018541,2]
[373324765,1752947439250,-460.0,0.00018541,2]
[373324767,1752947439260,-460.0,0.00018541,2]
[373324769,1752947439269,-460.0,0.00018541,2]
[373324771,1752947439279,-656.09,0.00018541,2]
[373324773,1752947439288,-460.0,0.00018541,2]
[373324776,1752947439298,-460.0,0.00018542,2]
[373324777,1752947439308,-207.4,0.00018575,2]
[373324780,1752947439317,-460.0,0.00018812,2]
[373324781,1752947439327,-783.79,0.00018812,2]
[373324784,1752947439337,-460.0,0.00018812,2]
[373324786,1752947439346,-651.34,0.00018813,2]
[373324788,1752947439356,-460.0,0.00018813,2]
[373324790,1752947439365,-460.0,0.00018813,2]
[373324792,1752947439375,-1120.52,0.00018813,2]
[373324794,1752947439384,-460.0,0.00018814,2]
[373324796,1752947439394,-460.0,0.00018814,2]
[373324798,1752947439403,-862.69,0.00018814,2]
[373324800,1752947439411,-1033.51,0.00018814,2]
[373324802,1752947439421,-460.0,0.00018815,2]
[373324804,1752947439431,-460.0,0.00018815,2]
[373324806,1752947439440,-460.0,0.00018815,2]
[373324807,1752947439450,-460.0,0.00018815,2]
[373324810,1752947439459,-656.09,0.00018815,2]
[373324812,1752947439471,-460.0,0.00018815,2]
[373324813,1752947439480,-460.0,0.00018816,2]
[373324815,1752947439490,-291.33809974,0.00018833,2]
[373324817,1752947439500,-500.0,0.00018833,2]
[373324820,1752947439510,-500.0,0.00018856,2]
[373324821,1752947439519,-500.0,0.00018856,2]
[373324823,1752947439529,-318.88036669,0.00018856,2]
[373324825,1752947439538,-297.7733242,0.00018856,2]
[373324828,1752947439548,-636.66060445,0.00018856,2]
[373324830,1752947439558,-500.0,0.00018856,2]
[373324832,1752947439568,-500.0,0.00018856,2]
[373324833,1752947439577,-500.0,0.00018856,2]
[373324835,1752947439587,-500.0,0.00018856,2]
[373324837,1752947439597,-500.0,0.00018856,2]
[373324840,1752947439607,-348.9579824,0.00018856,2]
[373324842,1752947439617,-500.0,0.00018856,2]
[373324843,1752947439626,-500.0,0.00018856,2]
[373324846,1752947439635,-500.0,0.00018856,2]
[373324848,1752947439645,-500.0,0.00018856,2]
[373324850,1752947439655,-500.0,0.00018856,2]
[373324852,1752947439665,-500.0,0.00018856,2]
[373324854,1752947439674,-500.0,0.00018856,2]
[373324856,1752947439684,-500.0,0.00018856,2]
[373324858,1752947439693,-500.0,0.00018856,2]
[373324860,1752947439703,-500.0,0.00018856,2]
[373324862,1752947439713,-500.0,0.00018856,2]
[373324864,1752947439723,-500.0,0.00018856,2]
[373324866,1752947439732,-500.0,0.00018856,2]
[373324868,1752947439741,-500.0,0.00018856,2]
[373324870,1752947439750,-500.0,0.00018856,2]
[373324872,1752947439759,-500.0,0.00018856,2]